fUST/lending_fUST_20250808
["ID","MTS","AMOUNT","RATE_DAILY","PERIOD"]
[377895226,1754603445181,-460.0,0.00023287,2]
[377895227,1754603445190,-499.8,0.00023287,2]
[377895228,1754603445200,-460.0,0.00023287,2]
[377895229,1754603445209,-2049.89,0.00023287,2]
[377895230,1754603445218,-856.73,0.00023287,2]
[377895231,1754603445228,-151.0,0.00023287,7]
[377895232,1754603445238,-1031.25,0.00023287,2]
[377895233,1754603445248,-735.595839,0.00023287,7]
[377895234,1754603445257,-735.595839,0.00023287,7]
[377895235,1754603445267,-509.41,0.00023287,2]
[377895236,1754603445277,-160.0,0.00023309,2]
[377895237,1754603445287,-2289.0,0.0002331,2]
[377895238,1754603445296,-4062.22276524,0.00023329,2]
[377895239,1754603445306,-151.0,0.00023329,7]
[377895240,1754603445315,-151.0,0.00023329,7]
[377895241,1754603445324,-500.0,0.00023338,2]
[377895242,1754603445334,-2289.0,0.00023379,2]
[377895243,1754603445343,-151.0,0.00023409,7]
[377895244,1754603445352,-151.0,0.00023409,7]
[377895245,1754603445362,-195.406091,0.00023409,7]
[377895246,1754603445372,-195.406091,0.00023409,7]
[377895247,1754603445381,-549.611894,0.00023409,7]
[377895248,1754603445391,-549.611894,0.00023409,7]
[377895249,1754603445400,-151.0,0.00023409,7]
[377895250,1754603445409,-151.0,0.00023409,7]
[377895251,1754603445419,-151.0,0.00023409,7]
[377895252,1754603445428,-9316.05712506,0.00023409,2]
[377895253,1754603445438,-2289.0,0.00023457,2]
[377895254,1754603445448,-500.0,0.00023458,2]
[377895255,1754603445457,-500.0,0.00023458,2]
[377895256,1754603445466,-688.97,0.0002346,2]
[377895257,1754603445475,-1822.4,0.0002346,2]
[377895258,1754603445486,-151.0,0.00023461,7]
[377895259,1754603445497,-585.906119,0.00023461,7]
[377895260,1754603445506,-585.906119,0.00023461,7]
[377895261,1754603445516,-628.996445,0.00023461,7]
[377895262,1754603445525,-628.996445,0.00023461,7]
[377895263,1754603445535,-151.0,0.00023461,7]
[377895264,1754603445544,-151.0,0.00023461,7]
[377895265,1754603445555,-151.0,0.00023461,7]
[377895266,1754603445564,-151.0,0.00023461,7]
[377895267,1754603445575,-151.0,0.00023461,7]
[377895268,1754603445584,-735.595839,0.00023461,7]
[377895269,1754603445594,-735.595839,0.00023461,7]
[377895270,1754603445603,-160.0,0.00023461,3]
[377895271,1754603445612,-842.63596909,0.00023461,3]
[377895272,1754603445622,-216.52217562,0.00023461,3]
[377895273,1754603445631,-527.57568145,0.00023461,3]
[377895274,1754603445640,-312.16666667,0.00023461,3]
[377895276,1754603445650,-19234.38887591,0.00023461,3]
[377895278,1754603445659,-7548.02499946,0.000235,2]
[377895280,1754603445668,-151.0,0.000235,7]
[377895281,1754603445678,-185.989936,0.000235,7]
[377895282,1754603445688,-500.0,0.00023511,2]
[377895283,1754603445698,-500.0,0.00023511,2]
[377895284,1754603445709,-500.0,0.00023511,2]
[377895285,1754603445719,-500.0,0.00023511,2]
[377895286,1754603445728,-500.0,0.00023511,2]
[377895287,1754603445738,-420.0,0.00023539,2]
[377895288,1754603445747,-277.59336947,0.00023561,2]
[377895289,1754603445758,-151.0,0.00023561,7]
[377895290,1754603445767,-151.0,0.00023561,7]
[377895291,1754603445777,-460.0,0.00023561,2]
[377895292,1754603445788,-195.406091,0.00023561,7]
[377895294,1754603445797,-195.406091,0.00023561,7]
[377895295,1754603445807,-260.90057274,0.00023561,2]
[377895297,1754603445816,-460.0,0.00023561,2]
[377895299,1754603445826,-549.611894,0.00023561,7]
[377895302,1754603445835,-549.611894,0.00023561,7]
[377895304,1754603445845,-151.0,0.00023561,7]
[377895306,1754603445855,-151.0,0.00023561,7]
[377895308,1754603445864,-593.46,0.00023561,2]
[377895309,1754603445874,-460.0,0.00023561,2]
[377895311,1754603445883,-460.0,0.00023561,2]
[377895314,1754603445893,-478.61,0.00023561,2]
[377895315,1754603445902,-988.29,0.00023561,2]
[377895318,1754603445912,-460.0,0.00023561,2]
[377895320,1754603445922,-1038.3,0.00023561,2]
[377895322,1754603445931,-460.0,0.00023561,2]
[377895324,1754603445940,-460.0,0.00023561,2]
[377895326,1754603445950,-659.64,0.00023561,2]
[377895327,1754603445959,-460.0,0.00023561,2]
[377895330,1754603445968,-696.32,0.00023561,2]
[377895332,1754603445978,-931.5,0.00023561,2]
[377895333,1754603445987,-151.0,0.00023561,7]
[377895335,1754603445996,-460.0,0.00023561,2]
[377895337,1754603446005,-780.8,0.00023561,2]
[377895339,1754603446014,-460.0,0.00023561,2]
[377895341,1754603446024,-1235.24,0.00023561,2]
[377895343,1754603446033,-460.0,0.00023561,2]
[377895345,1754603446043,-1215.77,0.00023561,2]
[377895347,1754603446053,-895.01,0.00023561,2]
[377895349,1754603446063,-460.0,0.00023561,2]
[377895351,1754603446072,-857.72,0.00023561,2]
[377895354,1754603446081,-460.0,0.00023561,2]
[377895356,1754603446091,-621.03,0.00023561,2]
[377895358,1754603446101,-460.0,0.00023561,2]
[377895360,1754603446111,-1356.22,0.00023561,2]
[377895362,1754603446120,-546.43425571,0.00023561,2]
[377895364,1754603446130,-460.0,0.00023561,2]
[377895366,1754603446139,-736.66,0.00023561,2]
[377895368,1754603446148,-460.0,0.00023561,2]
[377895370,1754603446158,-499.8,0.00023561,2]
[377895372,1754603446167,-460.0,0.00023561,2]
[377895374,1754603446176,-2049.89,0.00023561,2]
[377895376,1754603446185,-856.73,0.00023561,2]
[377895378,1754603446195,-1031.25,0.00023561,2]
[377895380,1754603446204,-509.41,0.00023561,2]
[377895383,1754603446213,-151.0,0.000236,7]
[377895385,1754603446222,-2000.0,0.00023616,2]
[377895387,1754603446231,-2000.0,0.00023616,2]
[377895389,1754603446240,-151.0,0.00023649,7]
[377895391,1754603446249,-1680.0,0.00023649,2]
[377895393,1754603446259,-150.0,0.00023664,2]
[377895395,1754603446268,-326.13675322,0.00023664,2]
[377895397,1754603446277,-500.0,0.00023664,2]
[377895399,1754603446286,-500.0,0.00023664,2]
[377895401,1754603446296,-895.6,0.00023673,2]
[377895403,1754603446305,-151.0,0.00023712,7]
[377895405,1754603446315,-151.0,0.00023712,7]
[377895407,1754603446324,-151.0,0.00023712,7]
[377895409,1754603446334,-151.0,0.00023712,7]
[377895411,1754603446343,-151.0,0.00023712,7]
[377895413,1754603446353,-735.595839,0.00023712,7]
[377895415,1754603446362,-735.595839,0.00023712,7]
[377895417,1754603446371,-971.0,0.00023712,2]
[377895419,1754603446381,-636.0,0.00023712,2]
[377895421,1754603446390,-2149.0,0.00023712,2]
[377895423,1754603446399,-437.421,0.00023712,2]
[377895425,1754603446408,-911.26,0.00023725,3]
[377895427,1754603446418,-911.26,0.00023725,3]
[377895429,1754603446427,-585.906119,0.00023725,7]
[377895431,1754603446436,-585.906119,0.00023725,7]
[377895433,1754603446446,-628.996445,0.00023725,7]
[377895435,1754603446455,-628.996445,0.00023725,7]
[377895437,1754603446464,-1822.54,0.00023728,3]
[377895438,1754603446474,-688.97,0.00023734,2]
[377895440,1754603446483,-1822.4,0.00023734,2]
[377895442,1754603446492,-151.0,0.00023737,2]
[377895444,1754603446502,-5888.0,0.00023815,2]
[377895446,1754603446511,-151.0,0.00023835,7]
[377895448,1754603446520,-151.0,0.00023835,7]
[377895450,1754603446530,-460.0,0.00023835,2]
[377895452,1754603446540,-195.406091,0.00023835,7]
[377895453,1754603446550,-195.406091,0.00023835,7]
[377895454,1754603446559,-460.0,0.00023835,2]
[377895455,1754603446568,-549.611894,0.00023835,7]
[377895456,1754603446578,-549.611894,0.00023835,7]
[377895458,1754603446587,-151.0,0.00023835,7]
[377895460,1754603446596,-151.0,0.00023835,7]
[377895462,1754603446605,-593.46,0.00023835,2]
[377895464,1754603446614,-460.0,0.00023835,2]
[377895465,1754603446624,-460.0,0.00023835,2]
[377895466,1754603446633,-478.61,0.00023835,2]
[377895468,1754603446643,-988.29,0.00023835,2]
[377895470,1754603446651,-460.0,0.00023835,2]
[377895472,1754603446660,-1038.3,0.00023835,2]
[377895474,1754603446670,-460.0,0.00023835,2]
[377895476,1754603446679,-460.0,0.00023835,2]
[377895478,1754603446688,-659.64,0.00023835,2]
[377895480,1754603446697,-460.0,0.00023835,2]
[377895482,1754603446711,-696.32,0.00023835,2]
[377895484,1754603446722,-151.0,0.00023835,7]
[377895486,1754603446732,-931.5,0.00023835,2]
[377895488,1754603446742,-460.0,0.00023835,2]
[377895490,1754603446752,-780.8,0.00023835,2]
[377895492,1754603446761,-460.0,0.00023835,2]
[377895494,1754603446771,-1235.24,0.00023835,2]
[377895496,1754603446780,-460.0,0.00023835,2]
[377895498,1754603446792,-1215.77,0.00023835,2]
[377895500,1754603446803,-895.01,0.00023835,2]
[377895502,1754603446812,-460.0,0.00023835,2]
[377895504,1754603446821,-857.72,0.00023835,2]
[377895506,1754603446831,-460.0,0.00023835,2]
[377895508,1754603446840,-621.03,0.00023835,2]
[377895510,1754603446851,-460.0,0.00023835,2]
[377895512,1754603446861,-1356.22,0.00023835,2]
[377895515,1754603446870,-460.0,0.00023835,2]
[377895517,1754603446890,-736.66,0.00023835,2]
[377895519,1754603446899,-460.0,0.00023835,2]
[377895521,1754603446909,-499.8,0.00023835,2]
[377895523,1754603446918,-460.0,0.00023835,2]
[377895525,1754603446928,-2049.89,0.00023835,2]
[377895527,1754603446937,-856.73,0.00023835,2]
[377895529,1754603446947,-1031.25,0.00023835,2]
[377895531,1754603446956,-509.41,0.00023835,2]
[377895533,1754603446966,-260.0,0.00023857,2]
[377895535,1754603446975,-151.0,0.000239,10]
[377895537,1754603446985,-151.0,0.00023925,7]
[377895539,1754603446995,-159.010915,0.00023925,7]
[377895541,1754603447005,-151.0,0.00023925,7]
[377895543,1754603447015,-151.0,0.00023925,7]
[377895545,1754603447025,-151.0,0.00023925,7]
[377895547,1754603447035,-735.595839,0.00023925,7]
[377895549,1754603447044,-735.595839,0.00023925,7]
[377895551,1754603447056,-5888.0,0.00023925,2]
[377895553,1754603447065,-585.906119,0.00023945,7]
[377895555,1754603447075,-585.906119,0.00023945,7]
[377895557,1754603447084,-628.996445,0.00023945,7]
[377895559,1754603447094,-628.996445,0.00023945,7]
[377895561,1754603447103,-716.91917713,0.00023945,2]
[377895563,1754603447113,-5162.0,0.00023956,2]
[377895565,1754603447126,-1699.06142133,0.00024,2]
[377895568,1754603447136,-322.90547651,0.00024,2]
[377895570,1754603447145,-455.3730055,0.00024,2]
[377895571,1754603447155,-1023.93026867,0.00024,7]
[377895572,1754603447164,-160.0,0.00024,7]
[377895573,1754603447174,-160.0,0.00024,7]
[377895574,1754603447183,-842.63596909,0.00024,7]
[377895575,1754603447193,-216.52217562,0.00024,7]
[377895576,1754603447202,-527.57568145,0.00024,7]
[377895577,1754603447212,-312.16666667,0.00024,7]
[377895578,1754603447221,-1024.47619267,0.00024006,2]
[377895579,1754603447231,-688.97,0.00024008,2]
[377895580,1754603447241,-1822.4,0.00024008,2]
[377895581,1754603447250,-716.91917713,0.00024055,2]
[377895582,1754603447260,-1000.0,0.00024059,2]
[377895583,1754603447270,-1000.0,0.00024059,2]
[377895584,1754603447280,-895.6,0.00024062,2]
[377895585,1754603447289,-151.0,0.00024063,7]
[377895586,1754603447300,-549.611894,0.00024085,7]
[377895587,1754603447309,-549.611894,0.00024085,7]
[377895588,1754603447319,-151.0,0.00024085,7]
[377895589,1754603447329,-151.0,0.00024085,7]
[377895590,1754603447338,-2289.0,0.00024085,2]
[377895591,1754603447348,-151.0,0.00024108,7]
[377895592,1754603447516,-151.0,0.00024109,7]
[377895593,1754603447525,-295.099341,0.00024109,7]
[377895594,1754603447534,-195.406091,0.00024109,7]
[377895595,1754603447543,-460.0,0.00024109,2]
[377895596,1754603447554,-195.406091,0.00024109,7]
[377895597,1754603447563,-460.0,0.00024109,2]
[377895598,1754603447573,-593.46,0.00024109,2]
[377895599,1754603447582,-460.0,0.00024109,2]
[377895600,1754603447591,-460.0,0.00024109,2]
[377895601,1754603447600,-478.61,0.00024109,2]
[377895602,1754603447610,-988.29,0.00024109,2]
[377895603,1754603447619,-460.0,0.00024109,2]
[377895604,1754603447628,-1038.3,0.00024109,2]
[377895605,1754603447641,-460.0,0.00024109,2]
[377895606,1754603447670,-460.0,0.00024109,2]
[377895607,1754603447679,-585.906119,0.00024109,7]
[377895608,1754603447689,-585.906119,0.00024109,7]
[377895609,1754603447699,-659.64,0.00024109,2]
[377895610,1754603447710,-460.0,0.00024109,2]
[377895611,1754603447720,-696.32,0.00024109,2]
[377895612,1754603447729,-931.5,0.00024109,2]
[377895613,1754603447739,-460.0,0.00024109,2]
[377895614,1754603447748,-628.996445,0.00024109,7]
[377895615,1754603447759,-780.8,0.00024109,2]
[377895616,1754603447767,-628.996445,0.00024109,7]
[377895617,1754603447777,-460.0,0.00024109,2]
[377895618,1754603447787,-151.0,0.00024109,7]
[377895619,1754603447796,-1235.24,0.00024109,2]
[377895620,1754603447807,-460.0,0.00024109,2]
[377895621,1754603447817,-1215.77,0.00024109,2]
[377895622,1754603447826,-895.01,0.00024109,2]
[377895623,1754603447835,-460.0,0.00024109,2]
[377895624,1754603447845,-857.72,0.00024109,2]
[377895625,1754603447854,-460.0,0.00024109,2]
[377895626,1754603447863,-621.03,0.00024109,2]
[377895627,1754603447873,-151.0,0.00024109,7]
[377895628,1754603447883,-460.0,0.00024109,2]
[377895629,1754603447892,-1356.22,0.00024109,2]
[377895630,1754603447902,-460.0,0.00024109,2]
[377895631,1754603447912,-736.66,0.00024109,2]
[377895632,1754603447925,-151.0,0.00024109,7]
[377895633,1754603447935,-460.0,0.00024109,2]
[377895634,1754603447944,-499.8,0.00024109,2]
[377895635,1754603447954,-460.0,0.00024109,2]
[377895636,1754603447964,-2049.89,0.00024109,2]
[377895637,1754603447973,-856.73,0.00024109,2]
[377895638,1754603447983,-1031.25,0.00024109,2]
[377895639,1754603447992,-735.595839,0.00024109,7]
[377895640,1754603448002,-735.595839,0.00024109,7]
[377895641,1754603448011,-509.41,0.00024109,2]
[377895642,1754603448021,-5162.0,0.00024136,2]
[377895643,1754603448031,-5888.0,0.00024141,2]
[377895644,1754603448040,-500.0,0.00024164,2]
[377895645,1754603448051,-2500.0,0.00024164,2]
[377895646,1754603448060,-179.334206,0.00024179,7]
[377895647,1754603448070,-716.91917713,0.00024192,2]
[377895648,1754603448081,-151.0,0.000242,9]
[377895649,1754603448091,-250.0,0.00024212,2]
[377895650,1754603448100,-500.0,0.00024212,2]
[377895651,1754603448110,-277.522384,0.00024247,2]
[377895652,1754603448120,-688.97,0.00024282,2]
[377895653,1754603448131,-1822.4,0.00024282,2]
[377895654,1754603448140,-716.91917713,0.00024301,2]
[377895655,1754603448150,-150.59244816,0.00024308,2]
[377895656,1754603448159,-151.0,0.00024318,7]
[377895657,1754603448169,-151.0,0.00024318,7]
[377895658,1754603448178,-151.0,0.00024318,7]
[377895659,1754603448188,-735.595839,0.00024318,7]
[377895660,1754603448198,-5162.0,0.00024318,2]
[377895661,1754603448208,-600.0,0.00024373,2]
[377895662,1754603448217,-151.0,0.00024383,7]
[377895663,1754603448227,-151.0,0.00024383,7]
[377895664,1754603448237,-151.0,0.00024383,7]
[377895665,1754603448247,-195.406091,0.00024383,7]
[377895666,1754603448256,-460.0,0.00024383,2]
[377895667,1754603448265,-195.406091,0.00024383,7]
[377895668,1754603448275,-460.0,0.00024383,2]
[377895669,1754603448284,-549.611894,0.00024383,7]
[377895670,1754603448294,-549.611894,0.00024383,7]
[377895671,1754603448304,-151.0,0.00024383,7]
[377895672,1754603448313,-151.0,0.00024383,7]
[377895673,1754603448322,-593.46,0.00024383,2]
[377895674,1754603448331,-460.0,0.00024383,2]
[377895675,1754603448340,-460.0,0.00024383,2]
[377895676,1754603448350,-478.61,0.00024383,2]
[377895677,1754603448360,-988.29,0.00024383,2]
[377895678,1754603448369,-460.0,0.00024383,2]
[377895679,1754603448379,-1038.3,0.00024383,2]
[377895680,1754603448388,-460.0,0.00024383,2]
[377895681,1754603448398,-460.0,0.00024383,2]
[377895682,1754603448408,-585.906119,0.00024383,7]
[377895683,1754603448418,-585.906119,0.00024383,7]
[377895684,1754603448427,-659.64,0.00024383,2]
[377895685,1754603448437,-460.0,0.00024383,2]
[377895686,1754603448446,-696.32,0.00024383,2]
[377895687,1754603448456,-931.5,0.00024383,2]
[377895688,1754603448466,-460.0,0.00024383,2]
[377895689,1754603448476,-628.996445,0.00024383,7]
[377895690,1754603448486,-780.8,0.00024383,2]
[377895691,1754603448497,-628.996445,0.00024383,7]
[377895692,1754603448506,-335.94475019,0.00024383,2]
[377895693,1754603448517,-1235.24,0.00024383,2]
[377895694,1754603448526,-460.0,0.00024383,2]
[377895695,1754603448536,-1215.77,0.00024383,2]
[377895696,1754603448545,-460.0,0.00024383,2]
[377895697,1754603448556,-857.72,0.00024383,2]
[377895698,1754603448565,-460.0,0.00024383,2]
[377895699,1754603448574,-895.01,0.00024383,2]
[377895700,1754603448584,-621.03,0.00024383,2]
[377895701,1754603448594,-460.0,0.00024383,2]
[377895702,1754603448604,-1356.22,0.00024383,2]
[377895703,1754603448613,-460.0,0.00024383,2]
[377895704,1754603448622,-736.66,0.00024383,2]
[377895705,1754603448631,-460.0,0.00024383,2]
[377895706,1754603448640,-499.8,0.00024383,2]
[377895707,1754603448650,-460.0,0.00024383,2]
[377895708,1754603448659,-2049.89,0.00024383,2]
[377895709,1754603448669,-856.73,0.00024383,2]
[377895710,1754603448679,-1031.25,0.00024383,2]
[377895711,1754603448688,-151.0,0.000244,7]
[377895712,1754603448698,-360.0,0.00024405,2]
[377895713,1754603448711,-716.91917713,0.00024411,2]
[377895714,1754603448724,-655.18,0.00024415,7]
[377895715,1754603448733,-151.0,0.00024427,7]
[377895716,1754603448743,-895.6,0.00024451,3]
[377895717,1754603448754,-600.0,0.0002446,2]
[377895718,1754603448763,-314.8,0.00024494,2]
[377895719,1754603448773,-8670.56675628,0.000245,2]
[377895720,1754603448783,-549.611894,0.000245,7]
[377895721,1754603448793,-549.611894,0.000245,7]
[377895722,1754603448803,-151.0,0.000245,7]
[377895723,1754603448813,-151.0,0.000245,7]
[377895724,1754603448825,-312.16666667,0.000245,7]
[377895725,1754603448837,-716.91917713,0.00024521,2]
[377895726,1754603448847,-5888.0,0.00024529,7]
[377895727,1754603448856,-688.97,0.00024556,2]
[377895728,1754603448866,-1822.4,0.00024556,2]
[377895729,1754603448875,-151.0,0.00024558,7]
[377895730,1754603448885,-500.0,0.00024567,2]
[377895731,1754603448894,-151.0,0.00024567,7]
[377895732,1754603448903,-151.0,0.00024567,7]
[377895733,1754603448913,-195.406091,0.00024567,7]
[377895734,1754603448922,-195.406091,0.00024567,7]
[377895735,1754603448932,-5888.0,0.00024572,2]
[377895736,1754603448942,-5888.0,0.00024598,2]
[377895737,1754603448955,-585.906119,0.00024598,7]
[377895738,1754603448971,-585.906126,0.00024598,7]
[377895739,1754603448984,-628.996445,0.00024598,7]
[377895740,1754603448996,-628.996444,0.00024598,7]
[377895741,1754603449007,-10112.45374756,0.000246,2]
[377895742,1754603449019,-191.092318,0.000246,7]
[377895743,1754603449032,-1146.67618749,0.00024607,2]
[377895744,1754603449053,-1500.0,0.00024607,2]
[377895745,1754603449065,-5162.0,0.00024632,2]
[377895746,1754603449079,-26280.47917695,0.0002465,2]
[377895747,1754603449242,-7140.56937081,0.0002465,2]
[377895748,1754603449467,-460.0,0.00021917,2]
[377895749,1754603449478,-104.92919808,0.00023712,2]
[377895750,1754603449625,-460.0,0.00021917,2]
[377895751,1754603449636,-272.08,0.00022191,2]
[377895752,1754603449647,-176.71,0.00022455,10]
[377895753,1754603449658,-247.75014759,0.00022968,2]
[377895754,1754603449803,-7090.56169087,0.00022913,2]
[377895755,1754603479215,237.94677,0.00013699,2]
[377895756,1754603479736,237.94677,0.00020187,2]
[377895764,1754603705792,210.0,0.00024897,120]
[377895769,1754604147574,24900.0,0.00021349,2]
[377895775,1754604434412,214.152093,0.00013699,2]
[377895776,1754604434644,214.152093,0.00020187,2]
[377895819,1754604632330,-1028.25421806,0.00021817,2]
[377895886,1754604638012,-961.54334193,0.00021817,2]
[377895887,1754604638073,-676.51404818,0.00021817,2]
[377895888,1754604638083,-272.0,0.00021916,2]
[377895889,1754604638094,-1200.0,0.00021916,2]
[377895890,1754604638104,-460.0,0.00021917,2]
[377895891,1754604638114,-460.0,0.00021917,2]
[377895892,1754604638124,-599.83031759,0.00021917,2]
[377895894,1754604638134,-460.0,0.00021917,2]
[377895896,1754604638143,-460.0,0.00021917,2]
[377895898,1754604638152,-460.0,0.00021917,2]
[377895899,1754604638162,-460.0,0.00021917,2]
[377895900,1754604638171,-460.0,0.00021917,2]
[377895901,1754604638180,-460.0,0.00021917,2]
[377895902,1754604638190,-182.79650212,0.00021917,2]
[377895903,1754604638199,-460.0,0.00021917,2]
[377895904,1754604638209,-460.0,0.00021917,2]
[377895906,1754604638218,-460.0,0.00021917,2]
[377895907,1754604638228,-260.90057274,0.00021917,2]
[377895909,1754604638238,-460.0,0.00021917,2]
[377895910,1754604638247,-460.0,0.00021917,2]
[377895912,1754604638257,-460.0,0.00021917,2]
[377895913,1754604638266,-460.0,0.00021917,2]
[377895915,1754604638275,-460.0,0.00021917,2]
[377895916,1754604638440,-460.0,0.00021917,2]
[377895917,1754604638452,-460.0,0.00021917,2]
[377895918,1754604638462,-460.0,0.00021917,2]
[377895919,1754604638471,-460.0,0.00021917,2]
[377895920,1754604638480,-460.0,0.00021917,2]
[377895921,1754604638490,-460.0,0.00021917,2]
[377895922,1754604638499,-460.0,0.00021917,2]
[377895923,1754604638508,-187.0211501,0.00021917,2]
[377895924,1754604638520,-272.9788499,0.00021917,2]
[377895925,1754604638530,-555.10354702,0.00021917,2]
[377895926,1754604638539,-222.47190652,0.00021917,2]
[377895927,1754604638550,-237.52809348,0.00021917,2]
[377895928,1754604638560,-336.04021599,0.00021917,2]
[377896057,1754604745969,668.61432872,0.00019817,2]
[377896058,1754604807774,298.80421444,0.00021259,2]
[377896059,1754604810910,158.355319,0.00027744,30]
[377896063,1754604883723,1000.0,0.0002096,2]
[377896066,1754604938820,150.49829437,8.7e-07,2]
[377896067,1754604938918,150.49829437,8.7e-07,2]
[377896068,1754604939021,150.49829437,8.7e-07,2]
[377896069,1754604939117,150.49829437,8.7e-07,2]
[377896070,1754604939208,150.49829437,8.7e-07,2]
[377896071,1754604939306,150.49829437,8.7e-07,2]
[377896072,1754604939403,150.49829437,8.7e-07,2]
[377896073,1754604939597,150.49829437,8.7e-07,2]
[377896074,1754604939764,150.49829437,8.7e-07,2]
[377896078,1754605047692,941.31527703,0.00019817,2]
[377896079,1754605109705,259.01421139,0.00021259,2]
[377896080,1754605120890,150.59244816,0.00027704,30]
[377896081,1754605128282,5000.0,0.00030137,120]
[377896082,1754605240347,10000.0,0.00030137,120]
[377896083,1754605274667,10000.0,0.00030137,120]
[377896085,1754605296610,10000.0,0.00030137,120]
[377896091,1754605422573,171.9803217,0.00020912,2]
[377896093,1754605472615,3327.58,0.0003013,120]
[377896096,1754605531365,192.736883,0.00013699,2]
[377896097,1754605531609,192.736883,0.00020187,2]
[377896099,1754605539173,2408.48,0.00028,30]
[377896102,1754605569872,3000.0,0.00028,30]
[377896103,1754605572932,551.39,0.00028,30]
[377896105,1754605594077,393.53,0.00028,30]
[377896106,1754605634264,24900.0,0.00020906,2]
[377896108,1754605642255,490.12,0.00028,30]
[377896110,1754605664128,349.81,0.00028,30]
[377896111,1754605671179,10000.0,0.00020906,2]
[377896112,1754605675868,480.0,0.0002148,7]
[377896132,1754605825662,631.588685,0.00020914,2]
[377896203,1754605832448,-168.16503093,0.00021714,2]
[377896205,1754605832458,-210.35256253,0.00021716,2]
[377896207,1754605832468,-391.33408027,0.00021816,2]
[377896240,1754605838324,-2554.87020574,0.00021816,2]
[377896241,1754605838335,-409.5346305,0.00021904,2]
[377896242,1754605838344,-1200.0,0.00021904,2]
[377896243,1754605838354,-300.0,0.00021904,2]
[377896244,1754605838364,-224.0,0.00021904,2]
[377896245,1754605838376,-300.0,0.00021905,2]
[377896246,1754605838386,-300.0,0.00021905,2]
[377896247,1754605838395,-300.0,0.00021905,2]
[377896248,1754605838404,-1200.0,0.00021906,2]
[377896249,1754605838414,-787.12,0.00021907,3]
[377896251,1754605838424,-393.56,0.00021907,3]
[377896252,1754605838433,-196.78,0.00021907,3]
[377896253,1754605838441,-590.37,0.00021907,3]
[377896254,1754605838451,-1316.81,0.00021907,10]
[377896255,1754605838461,-31368.68636248,0.00021907,2]
[377896256,1754605838470,-500.0,0.00021916,2]
[377896257,1754605838480,-366.34158978,0.00021916,2]
[377896258,1754605838489,-500.0,0.00021916,2]
[377896259,1754605838499,-500.0,0.00021916,2]
[377896260,1754605838508,-366.68148462,0.00021916,2]
[377896261,1754605838517,-612.06859474,0.00021916,2]
[377896262,1754605838527,-500.0,0.00021916,2]
[377896263,1754605838536,-500.0,0.00021916,2]
[377896264,1754605838545,-500.0,0.00021916,2]
[377896265,1754605838555,-500.0,0.00021916,2]
[377896266,1754605838564,-500.0,0.00021916,2]
[377896267,1754605838574,-288.19334537,0.00021916,2]
[377896268,1754605838583,-500.0,0.00021916,2]
[377896269,1754605838592,-500.0,0.00021916,2]
[377896270,1754605838601,-500.0,0.00021916,2]
[377896271,1754605838611,-500.0,0.00021916,2]